bitfinex-derivatives/quotes_BTCF0:USTF0_20240903
["timestamp","ask_amount","ask_price","bid_price","bid_amount"]
[1725325674107,0.067286,59444.0,59443.0,0.0008]
[1725325675105,0.3616,59445.0,59443.0,0.0008]
[1725325675307,0.3616,59445.0,59444.0,0.0004]
[1725325675512,0.0008,59445.0,59444.0,0.227686]
[1725325676411,0.0008,59445.0,59444.0,0.067686]
[1725325677715,0.068085,59445.0,59444.0,0.0004]
[1725325678004,0.068085,59445.0,59444.0,0.0014]
[1725325678598,0.235285,59445.0,59444.0,0.0014]
[1725325678803,0.30257,59445.0,59444.0,0.0014]
[1725325679004,0.134582,59440.0,59439.0,0.00025235]
[1725325679213,0.765382,59440.0,59439.0,0.00025235]
[1725325679406,1.870502,59440.0,59439.0,0.00025235]
[1725325679604,1.870502,59440.0,59439.0,1e-08]
[1725325681603,1.937793,59440.0,59439.0,1e-08]
[1725325681810,0.067301,59431.0,59415.0,0.16]
[1725325682011,0.3612,59417.0,59411.0,0.551024]
[1725325682209,0.0004,59412.0,59411.0,0.227324]
[1725325682406,0.067318,59416.0,59411.0,0.16]
[1725325682608,0.3608,59412.0,59407.0,0.16]
[1725325682807,0.0004,59408.0,59407.0,0.16]
[1725325683011,0.427523,59412.0,59407.0,0.16]
[1725325683317,0.427523,59412.0,59411.0,0.0004]
[1725325684214,0.427523,59412.0,59404.0,0.00025235]
[1725325684215,0.067331,59405.0,59404.0,0.00025235]
[1725325684417,0.067331,59405.0,59389.0,0.3237]
[1725325684418,0.067341,59396.0,59386.0,0.067352]
[1725325684620,0.3608,59394.0,59386.0,0.067352]
[1725325684920,0.3598,59394.0,59388.0,0.16]
[1725325685116,0.067341,59396.0,59388.0,0.16]
[1725325685318,0.3598,59395.0,59388.0,0.16]
[1725325685921,0.26871845,59395.0,59391.0,0.0837702]
[1725325686311,0.26871845,59395.0,59390.0,0.0837702]
[1725325686522,0.26871845,59395.0,59394.0,0.06630034]
[1725325686721,0.33606045,59395.0,59393.0,0.06630034]
[1725325686924,0.1604,59394.0,59390.0,0.06630034]
[1725325687117,0.1604,59391.0,59388.0,0.06630034]
[1725325687313,0.3612,59389.0,59387.0,0.06630034]
[1725325687514,0.3612,59389.0,59386.0,0.00025235]
[1725325687515,0.0004,59388.0,59386.0,0.00025235]
[1725325687717,0.0004,59387.0,59386.0,0.00025235]
[1725325687914,0.3608,59389.0,59386.0,0.00025235]
[1725325688425,0.3608,59389.0,59388.0,0.04967142]
[1725325689528,0.3608,59389.0,59387.0,0.04967142]
[1725325689820,0.3608,59389.0,59386.0,0.04992377]
[1725325689821,0.0004,59388.0,59386.0,0.04992377]
[1725325690030,0.0004,59387.0,59386.0,0.04992377]
[1725325690415,0.0004,59387.0,59386.0,0.00025235]
[1725325691120,0.067751,59387.0,59386.0,0.00025235]
[1725325695526,0.0004,59387.0,59386.0,0.42840435]
[1725325695721,0.0004,59387.0,59386.0,0.06760435]
[1725325696318,0.0004,59387.0,59386.0,0.00025235]
[1725325698822,0.287751,59387.0,59386.0,0.00025235]
[1725325699427,0.227751,59387.0,59386.0,0.00025235]
[1725325699922,0.327751,59387.0,59386.0,0.00025235]
[1725325701330,0.227751,59387.0,59386.0,0.00025235]
[1725325702831,0.347751,59387.0,59386.0,0.00025235]
[1725325703632,0.1204,59387.0,59386.0,0.06760435]
[1725325703930,0.0004,59387.0,59386.0,0.06760435]
[1725325704328,0.1604,59387.0,59386.0,0.06760435]
[1725325704726,0.1604,59387.0,59386.0,0.00025235]
[1725325705934,0.227751,59387.0,59386.0,0.00025235]
[1725325709230,0.347751,59387.0,59386.0,0.00025235]
[1725325710530,0.35343527,59387.0,59386.0,0.00025235]
[1725325711425,0.347751,59387.0,59386.0,0.00025235]
[1725325712529,0.708551,59387.0,59386.0,0.00025235]
[1725325712730,0.347751,59387.0,59386.0,0.00025235]
[1725325712935,0.708551,59387.0,59386.0,0.00025235]
[1725325713534,0.708551,59387.0,59386.0,0.12856518]
[1725325713737,0.548551,59387.0,59386.0,0.12856518]
[1725325715434,0.708551,59387.0,59386.0,0.12856518]
[1725325716035,0.708551,59387.0,59386.0,0.00025235]
[1725325717131,0.6412,59387.0,59386.0,0.00025235]
[1725325718937,0.6412,59387.0,59386.0,0.06760435]
[1725325720545,0.4812,59387.0,59386.0,0.06760435]
[1725325720938,0.6412,59387.0,59386.0,0.06760435]
[1725325722042,0.2804,59387.0,59386.0,0.06760435]
[1725325723048,0.2804,59387.0,59386.0,0.29643813]
[1725325723546,0.2804,59387.0,59386.0,0.19591389]
[1725325725855,0.1204,59387.0,59386.0,0.19591389]
[1725325730945,0.1204,59387.0,59386.0,0.06760435]
[1725325731855,0.36168,59393.0,59392.0,0.067345]
[1725325732050,0.36168,59393.0,59392.0,0.227345]
[1725325732051,0.3608,59393.0,59392.0,0.227345]
[1725325732244,0.3608,59393.0,59392.0,0.067345]
[1725325732443,0.5208,59393.0,59392.0,0.13406908]
[1725325732653,0.5208,59393.0,59392.0,0.067745]
[1725325733945,0.588144,59393.0,59392.0,0.0004]
[1725325734151,0.5208,59393.0,59392.0,0.0004]
[1725325734654,0.688144,59393.0,59392.0,0.0004]
[1725325738160,0.528144,59393.0,59392.0,0.0004]
[1725325738356,0.688144,59393.0,59392.0,0.0004]
[1725325738760,0.327344,59393.0,59392.0,0.0004]
[1725325741162,0.167344,59393.0,59392.0,0.0004]
[1725325743460,0.00592924,59398.0,59397.0,0.06734]
[1725325743461,0.00025235,59398.0,59397.0,0.06734]
[1725325743654,0.592029,59407.0,59397.0,0.06734]
[1725325743655,0.0039,59406.0,59397.0,0.52969018]
[1725325743852,0.0039,59409.0,59408.0,0.067327]
[1725325744048,0.0039,59417.0,59416.0,0.067318]
[1725325744255,0.067308,59425.0,59424.0,0.067309]
[1725325744256,0.0039,59425.0,59424.0,0.067309]
[1725325744557,0.00558954,59428.0,59425.0,0.067307]
[1725325744765,0.00025234,59432.0,59427.0,0.0004]
[1725325744961,0.00025234,59432.0,59428.0,0.1604]
[1725325745155,0.00025234,59432.0,59431.0,0.0004]
[1725325745454,0.00025234,59432.0,59428.0,0.1604]
[1725325745648,0.0004,59429.0,59428.0,0.1604]
[1725325746555,0.0004,59429.0,59428.0,0.0004]
[1725325753858,0.067703,59429.0,59428.0,0.0004]
[1725325763268,0.245006,59429.0,59428.0,0.0004]
[1725325765071,0.605806,59429.0,59428.0,0.0004]
[1725325766876,0.067311,59422.0,59421.0,0.00025256]
[1725325767072,0.708511,59422.0,59421.0,0.00025256]
[1725325767870,0.775822,59422.0,59421.0,0.00025256]
[1725325770275,1.880702,59422.0,59421.0,0.00025256]
[1725325771079,0.548511,59422.0,59421.0,0.00025256]
[1725325772177,0.187711,59422.0,59421.0,0.00025256]
[1725325772483,0.0004,59422.0,59421.0,0.00025256]
[1725325773180,0.227711,59422.0,59421.0,0.00025256]
[1725325775675,0.0004,59422.0,59421.0,0.00025256]
[1725325778179,0.0004,59422.0,59421.0,0.06756456]
[1725325785581,0.1604,59422.0,59421.0,0.06756456]
[1725325786583,0.0004,59422.0,59421.0,0.06756456]
[1725325790290,0.0004,59422.0,59421.0,0.42836456]
[1725325793490,0.0004,59422.0,59421.0,0.06756456]
[1725325794383,0.0004,59422.0,59421.0,0.00025256]
[1725325794384,0.227711,59422.0,59421.0,0.00025256]
[1725325794583,0.708511,59422.0,59421.0,0.00025256]
[1725325794985,0.347711,59422.0,59421.0,0.00025256]
[1725325795192,0.35325674,59422.0,59421.0,0.00025256]
[1725325796391,0.71405674,59422.0,59421.0,0.00025256]
[1725325796783,0.35325674,59422.0,59421.0,0.00025256]
[1725325797890,0.71405674,59422.0,59421.0,0.00025256]
[1725325799185,0.78136774,59422.0,59421.0,0.00025256]
[1725325801302,1.28624774,59422.0,59421.0,0.00025256]
[1725325802094,0.12554574,59422.0,59421.0,0.06756456]
[1725325802299,0.3608,59427.0,59421.0,0.06756456]
[1725325802499,0.067307,59426.0,59422.0,0.067311]
[1725325803194,0.3608,59427.0,59423.0,0.06731]
[1725325808503,0.07299107,59428.0,59423.0,0.06731]
[1725325809199,0.067306,59427.0,59423.0,0.06731]
[1725325809400,0.52168,59429.0,59423.0,0.06731]
[1725325809401,0.067307,59426.0,59423.0,0.06731]
[1725325810205,0.067308,59425.0,59423.0,0.06731]
[1725325810502,0.227308,59425.0,59423.0,0.06731]
[1725325810801,0.227308,59425.0,59421.0,0.00025256]
[1725325810802,0.06731,59423.0,59421.0,0.00025256]
[1725325811107,0.0004,59422.0,59421.0,0.00025256]
[1725325812991,0.0004,59422.0,59421.0,0.06756456]
[1725325817107,0.067711,59422.0,59421.0,0.06756456]
[1725325819203,0.227711,59422.0,59421.0,0.00025256]
[1725325819405,0.425022,59422.0,59421.0,0.00025256]
[1725325819606,0.929902,59422.0,59421.0,0.00025256]
[1725325820103,0.929902,59422.0,59421.0,1e-08]
[1725325820104,1.5354784,59422.0,59421.0,1e-08]
[1725325821609,0.9354784,59422.0,59421.0,1e-08]
[1725325822300,0.4305984,59422.0,59421.0,1e-08]
[1725325822508,0.3632874,59422.0,59421.0,1e-08]
[1725325823204,0.1359764,59422.0,59421.0,0.06731201]
[1725325823407,0.0059764,59422.0,59421.0,0.06731201]
[1725325823608,0.0059764,59422.0,59421.0,1e-08]
[1725325825108,0.3667764,59422.0,59421.0,1e-08]
[1725325829214,0.4340874,59422.0,59421.0,1e-08]
[1725325829599,0.5244874,59422.0,59421.0,1e-08]
[1725325830401,0.7117984,59422.0,59421.0,1e-08]
[1725325832913,1.8166784,59422.0,59421.0,1e-08]
[1725325833807,0.7117984,59422.0,59421.0,1e-08]
[1725325834109,0.4340874,59422.0,59421.0,1e-08]
[1725325834917,0.5440874,59422.0,59421.0,1e-08]
[1725325835208,0.6113984,59422.0,59421.0,1e-08]
[1725325838212,0.5440874,59422.0,59421.0,1e-08]
[1725325838614,0.6113984,59422.0,59421.0,1e-08]
[1725325838917,0.5440874,59422.0,59421.0,1e-08]
[1725325840717,0.4340874,59422.0,59421.0,1e-08]
[1725325841719,0.3667764,59422.0,59421.0,0.06731201]
[1725325842214,0.3612,59422.0,59421.0,0.06731201]
[1725325844011,0.0004,59422.0,59421.0,0.06731201]
[1725325846210,0.0004,59422.0,59421.0,1e-08]
[1725325848930,0.067711,59422.0,59421.0,1e-08]
[1725325849135,0.187711,59422.0,59421.0,1e-08]
[1725325851629,0.302322,59422.0,59421.0,1e-08]
[1725325851818,0.807202,59422.0,59421.0,1e-08]
[1725325852023,0.302322,59422.0,59421.0,1e-08]
[1725325852418,0.807202,59422.0,59421.0,1e-08]
[1725325852921,0.302322,59422.0,59421.0,1e-08]
[1725325854720,0.187711,59422.0,59421.0,1e-08]
[1725325854916,0.0004,59422.0,59421.0,1e-08]
[1725325856027,0.0004,59422.0,59421.0,0.06731201]
[1725325856831,0.0004,59422.0,59421.0,1e-08]
[1725325859031,0.067711,59422.0,59421.0,1e-08]
[1725325864624,0.187711,59422.0,59421.0,1e-08]
[1725325876534,0.548511,59422.0,59421.0,1e-08]
[1725325879534,0.0004,59422.0,59421.0,0.06731201]
[1725325881226,0.0004,59422.0,59421.0,1e-08]
[1725325883230,0.0204,59422.0,59421.0,1e-08]
[1725325885935,0.0904,59422.0,59421.0,1e-08]
[1725325886430,0.1004,59422.0,59421.0,1e-08]
[1725325888534,0.0004,59422.0,59421.0,1e-08]
[1725325888841,0.157711,59422.0,59421.0,1e-08]
[1725325889138,0.247711,59422.0,59421.0,1e-08]
[1725325893147,0.608511,59422.0,59421.0,1e-08]
[1725325893947,0.157711,59422.0,59421.0,1e-08]
[1725325895549,0.267711,59422.0,59421.0,1e-08]
[1725325899553,0.335022,59422.0,59421.0,1e-08]
[1725325899754,0.430222,59422.0,59421.0,1e-08]
[1725325901152,1.535102,59422.0,59421.0,1e-08]
[1725325902258,2.256702,59422.0,59421.0,1e-08]
[1725325903153,2.32576635,59422.0,59421.0,1e-08]
[1725325903761,2.256702,59422.0,59421.0,1e-08]
[1725325906566,1.656702,59422.0,59421.0,1e-08]
[1725325907358,0.935102,59422.0,59421.0,1e-08]
[1725325907661,1.656702,59422.0,59421.0,1e-08]
[1725325907885,0.935102,59422.0,59421.0,1e-08]
[1725325908049,1.656702,59422.0,59421.0,1e-08]
[1725325910666,1.151822,59422.0,59421.0,1e-08]
[1725325911560,0.899311,59422.0,59421.0,1e-08]
[1725325911756,0.879311,59422.0,59421.0,1e-08]
[1725325911959,0.789311,59422.0,59421.0,1e-08]
[1725325912154,0.879311,59422.0,59421.0,1e-08]
[1725325912564,0.518511,59422.0,59421.0,1e-08]
[1725325912759,0.3612,59422.0,59421.0,1e-08]
[1725325912955,0.0004,59422.0,59421.0,1.62299201]
[1725325913157,0.0039,59431.0,59429.0,0.067303]
[1725325913365,0.09025234,59432.0,59430.0,0.1846]
[1725325913658,0.09025234,59432.0,59430.0,0.095]
[1725325913864,0.09025234,59432.0,59431.0,0.067701]
[1725325914172,0.00025234,59432.0,59431.0,0.067301]
[1725325914466,0.00025234,59432.0,59431.0,0.428101]
[1725325914867,0.00025234,59432.0,59431.0,1.532901]
[1725325916265,0.00025234,59432.0,59431.0,1.740201]
[1725325918272,0.002,59436.0,59435.0,0.067297]
[1725325918467,0.002,59436.0,59435.0,0.588497]
[1725325918659,0.002,59436.0,59435.0,1.693257]
[1725325918867,0.0039,59444.0,59443.0,0.067287]
[1725325919163,0.0039,59452.0,59443.0,1.1208]
[1725325919371,0.16,59456.0,59443.0,1.1208]
[1725325919372,0.00025183,59453.0,59452.0,0.067277]
[1725325919978,0.00025183,59453.0,59444.0,0.0969]
[1725325920163,0.16,59447.0,59444.0,0.0969]
[1725325921277,0.16,59451.0,59444.0,0.0969]
[1725325921474,0.16,59451.0,59446.0,0.067284]
[1725325921874,0.06728,59450.0,59446.0,0.067284]
[1725325922062,0.227283,59447.0,59443.0,0.067287]
[1725325922572,0.227283,59447.0,59442.0,0.00025235]
[1725325922573,0.16,59447.0,59444.0,0.067286]
[1725325923170,0.5208,59452.0,59445.0,0.3608]
[1725325923381,0.16,59452.0,59445.0,0.3608]
[1725325923567,0.16,59452.0,59447.0,0.067283]
[1725325924175,0.067278,59452.0,59447.0,0.067283]
[1725325925071,0.00025183,59453.0,59450.0,0.3608]
[1725325925276,0.06752883,59453.0,59450.0,0.428079]
[1725325925479,0.067278,59452.0,59450.0,0.067279]
[1725325926073,0.067279,59451.0,59445.0,0.3608]
[1725325926275,0.067279,59451.0,59447.0,0.067282]
[1725325926973,0.067279,59451.0,59448.0,0.067281]
[1725325930377,0.067282,59448.0,59443.0,0.067286]
[1725325930581,0.16,59447.0,59445.0,0.067284]
[1725325930974,0.16,59451.0,59446.0,0.067284]
[1725325931177,0.16,59451.0,59442.0,0.00025235]
[1725325931379,0.067281,59449.0,59442.0,0.00025235]
[1725325931580,0.067281,59449.0,59442.0,0.36105235]
[1725325932584,0.067281,59449.0,59442.0,0.42834035]
[1725325933074,0.16,59443.0,59442.0,0.36105235]
[1725325934076,0.16,59443.0,59442.0,0.00025235]
[1725325934077,0.227287,59443.0,59442.0,0.00025235]
[1725325936478,0.588087,59443.0,59442.0,0.00025235]
[1725325937189,0.588087,59443.0,59442.0,1e-08]
[1725325937190,1.870054,59443.0,59442.0,1e-08]
[1725325937389,0.0673,59432.0,59418.0,0.0039]
[1725325937683,0.16,59419.0,59415.0,0.3608]
[1725325937896,0.16,59422.0,59415.0,0.3608]
[1725325938077,0.16,59422.0,59417.0,0.067316]
[1725325938278,0.16,59426.0,59417.0,0.067316]
[1725325938476,0.00025235,59425.0,59417.0,0.067316]
[1725325939282,0.16,59422.0,59417.0,0.067316]
[1725325940680,0.16,59422.0,59417.0,0.11734467]
[1725325940877,0.00025235,59425.0,59421.0,0.428112]
[1725325941082,0.00025235,59425.0,59424.0,0.0008]
[1725325944288,0.06756035,59425.0,59424.0,0.0008]
[1725325944487,0.42836035,59425.0,59424.0,0.0008]
[1725325945894,0.36105235,59425.0,59424.0,0.0008]
[1725325948988,0.42836035,59425.0,59424.0,0.0008]
[1725325952401,0.06756035,59425.0,59424.0,0.0008]
[1725325958200,0.61566835,59425.0,59424.0,0.0008]
[1725325958386,0.227319,59415.0,59414.0,0.00025235]
[1725325958592,0.588519,59415.0,59414.0,0.00025235]
[1725325959397,0.588519,59415.0,59404.0,0.067331]
[1725325959598,0.067332,59404.0,59386.0,0.0039]
[1725325959792,0.067332,59404.0,59382.0,0.04076215]
[1725325959793,0.1604,59387.0,59382.0,0.001]
[1725325959999,0.1604,59387.0,59375.0,0.0057024]
[1725325960000,0.0004,59383.0,59375.0,0.0057024]
[1725325960189,0.0004,59376.0,59374.0,0.3608]
[1725325960406,0.3608,59390.0,59374.0,0.3608]
[1725325960407,0.0004,59375.0,59374.0,0.3608]
[1725325960594,0.00025259,59381.0,59374.0,0.3608]
[1725325961303,0.00025259,59381.0,59374.0,0.428165]
[1725325962805,0.00025259,59381.0,59375.0,0.067364]
[1725325963302,0.00025259,59381.0,59379.0,0.588159]
[1725325963503,0.00025259,59381.0,59379.0,0.428159]
[1725325963697,0.227347,59391.0,59380.0,0.50524]
[1725325963698,0.3608,59387.0,59380.0,0.50524]
[1725325963894,0.3608,59387.0,59379.0,1.028159]
[1725325963895,0.3608,59387.0,59379.0,0.429159]
[1725325964198,0.0004,59380.0,59379.0,0.428159]
[1725325964600,0.0004,59380.0,59379.0,1.533399]
[1725325966218,0.00025259,59385.0,59379.0,0.933399]
[1725325966406,0.00025259,59385.0,59384.0,0.0004]
[1725325966605,0.36105259,59385.0,59384.0,0.0004]
[1725325967207,0.00025259,59385.0,59384.0,0.0004]
[1725325967404,0.00025259,59385.0,59384.0,1.533754]
[1725325968293,0.00025259,59385.0,59384.0,1.582954]
[1725325968900,0.0039,59394.0,59393.0,0.067344]
[1725325969100,0.428136,59400.0,59390.0,0.3608]
[1725325969300,0.428136,59400.0,59399.0,0.0004]
[1725325972411,0.428136,59400.0,59394.0,0.00025259]
[1725325972412,0.067342,59395.0,59394.0,0.00025259]
[1725325972601,0.588142,59395.0,59394.0,0.00025259]
[1725325973205,0.202071,59382.0,59367.0,0.0045]
[1725325973411,0.067376,59365.0,59355.0,0.3608]
[1725325973601,0.16,59363.0,59355.0,0.3608]
[1725325973806,0.0004,59356.0,59355.0,0.3608]
[1725325978916,0.00025259,59361.0,59355.0,0.3608]
[1725325979221,0.00025259,59361.0,59360.0,0.0004]
[1725325979609,0.00025259,59361.0,59360.0,0.3612]
[1725325980315,0.00025259,59361.0,59360.0,0.42745985]
[1725325980518,0.16,59366.0,59360.0,0.3612]
[1725325980708,0.16,59366.0,59365.0,0.0004]
[1725325981620,0.227375,59366.0,59365.0,0.0004]
[1725325982513,0.067384,59358.0,59354.0,0.06625985]
[1725325982718,0.1604,59355.0,59354.0,0.06625985]
[1725325983317,0.07611121,59355.0,59354.0,0.06625985]
[1725325983506,0.07611121,59355.0,59353.0,0.06739]
[1725325983719,0.0004,59354.0,59353.0,0.06739]
[1725325985306,0.0004,59354.0,59353.0,1.17283]
[1725325985521,0.0004,59354.0,59353.0,0.55656023]
[1725325985720,0.0004,59354.0,59353.0,0.42819]
[1725325986428,0.0004,59354.0,59353.0,0.06739]
[1725325988325,0.0489,59354.0,59353.0,0.06739]
[1725325989421,0.0489,59354.0,59350.0,0.00025259]
[1725325989723,0.0004,59351.0,59350.0,0.00025259]
[1725325990118,0.0004,59351.0,59350.0,0.06764559]
[1725325991822,0.0004,59351.0,59350.0,1.17312559]
[1725325993018,0.0004,59351.0,59350.0,0.57312559]
[1725325993519,0.0004,59351.0,59350.0,0.06764559]
[1725325993825,0.0004,59351.0,59350.0,1.40109753]
[1725325994323,0.0004,59351.0,59350.0,1.30149322]
[1725325995724,0.0004,59351.0,59350.0,0.19601322]
[1725325995926,0.16,59356.0,59354.0,0.067388]
[1725325996126,0.10099892,59356.0,59355.0,0.21189613]
[1725325996524,0.10099892,59356.0,59355.0,0.12876763]
[1725325996724,0.067385,59357.0,59355.0,0.19615463]
[1725325997029,0.067385,59357.0,59356.0,0.0004]
[1725325997323,0.00025213,59358.0,59356.0,0.57270099]
[1725325997632,0.00025213,59358.0,59357.0,0.27927929]
[1725325998127,0.00025213,59358.0,59357.0,0.19614622]
[1725325998841,0.3608,59364.0,59357.0,0.12876122]
[1725325999131,0.067378,59363.0,59362.0,0.15054129]
[1725325999434,0.067378,59363.0,59362.0,0.27890251]
[1725326000229,0.067378,59363.0,59362.0,0.19574022]
[1725326000729,0.2083,59365.0,59362.0,0.12836122]
[1725326000927,0.2083,59365.0,59364.0,0.067777]
[1725326000928,0.0483,59365.0,59364.0,0.067777]
[1725326001119,0.2083,59365.0,59364.0,0.067777]
[1725326002530,0.636476,59365.0,59364.0,0.0004]
[1725326002733,1.261836,59365.0,59364.0,0.0004]
[1725326004129,1.329212,59365.0,59364.0,0.0004]
[1725326004322,0.067387,59356.0,59350.0,0.00025259]
[1725326004528,0.0004,59351.0,59350.0,0.06764559]
[1725326007730,0.0004,59351.0,59341.0,0.227402]
[1725326007731,0.067405,59339.0,59331.0,0.06661964]
[1725326007931,0.73054159,59339.0,59325.0,0.067421]
[1725326008226,0.73054159,59339.0,59319.0,0.0482]
[1725326008227,0.16,59336.0,59324.0,0.3608]
[1725326008537,0.0004,59325.0,59319.0,0.0482]
[1725326008732,0.0004,59325.0,59324.0,0.067422]
[1725326009042,0.31863909,59327.0,59326.0,0.06742]
[1725326009229,0.00025281,59328.0,59326.0,1.45820374]
[1725326009423,0.00025281,59328.0,59327.0,0.28510374]
[1725326009629,0.00025281,59328.0,59327.0,0.28470374]
[1725326010542,0.00025281,59328.0,59327.0,0.19584114]
[1725326011239,0.00025281,59328.0,59327.0,0.19583861]
[1725326013435,0.00025281,59328.0,59327.0,0.70151861]
[1725326013633,0.00025281,59328.0,59327.0,0.75011861]
[1725326014028,0.00025281,59328.0,59327.0,1.35011861]
[1725326014249,0.0039,59335.0,59334.0,0.067411]
[1725326014537,0.3647,59344.0,59338.0,0.067407]
[1725326014840,0.3647,59344.0,59338.0,0.19622661]
[1725326014841,0.3608,59344.0,59338.0,0.19622661]
[1725326015044,0.5208,59344.0,59338.0,0.19622661]
[1725326015338,0.3612,59339.0,59338.0,0.27960252]
[1725326015740,0.3612,59339.0,59338.0,0.27960213]
[1725326015932,0.3612,59339.0,59338.0,0.1512015]
[1725326016134,0.3612,59339.0,59338.0,0.067807]
[1725326018249,0.3612,59339.0,59338.0,0.13451754]
[1725326019136,0.3612,59339.0,59338.0,0.067807]
[1725326019538,0.3612,59339.0,59338.0,0.0004]
[1725326019838,0.067411,59334.0,59333.0,0.00025281]
[1725326020032,0.16,59336.0,59333.0,0.00025281]
[1725326020234,0.0004,59334.0,59333.0,0.00025281]
[1725326020539,0.3612,59334.0,59333.0,0.00025281]
[1725326021634,0.428611,59334.0,59333.0,0.00025281]
[1725326024852,0.789411,59334.0,59333.0,0.00025281]
[1725326025546,0.856822,59334.0,59333.0,0.00025281]
[1725326028038,0.856822,59334.0,59320.0,0.0464]
[1725326028039,0.067426,59321.0,59320.0,0.0464]
[1725326028245,0.428226,59321.0,59320.0,0.0464]
[1725326028445,0.067427,59320.0,59319.0,0.0476]
[1725326028646,0.067827,59320.0,59319.0,0.0476]
[1725326028946,0.067427,59320.0,59319.0,0.0476]
[1725326030437,0.067427,59320.0,59316.0,0.067431]
[1725326030643,0.0004,59317.0,59316.0,0.067431]
[1725326030854,0.0004,59317.0,59314.0,0.00025281]
[1725326031146,0.1604,59315.0,59314.0,0.00025281]
[1725326032951,0.227833,59315.0,59314.0,0.00025281]
[1725326033147,0.0004,59315.0,59314.0,0.00025281]
[1725326033354,0.0004,59315.0,59314.0,0.06768681]
[1725326033853,0.0004,59315.0,59314.0,1.17344681]
[1725326034256,0.0004,59315.0,59314.0,1.24016311]
[1725326034442,0.0004,59315.0,59314.0,1.17344681]
[1725326034648,0.0004,59315.0,59314.0,1.24022442]
[1725326034843,0.0004,59315.0,59314.0,1.17344681]
[1725326035655,0.0004,59315.0,59314.0,1.24022442]
[1725326036444,0.0004,59315.0,59314.0,1.17344681]
[1725326037257,0.0004,59315.0,59314.0,1.24027646]
[1725326037453,0.0004,59315.0,59314.0,1.17344681]
[1725326038255,0.0004,59315.0,59314.0,0.06768681]
[1725326038650,0.0004,59315.0,59314.0,1.17344681]
[1725326038846,0.0004,59315.0,59314.0,1.33344681]
[1725326039054,0.0004,59315.0,59314.0,1.69424681]
[1725326039252,0.0004,59315.0,59314.0,1.76168081]
[1725326041848,0.0004,59315.0,59314.0,1.82911481]
[1725326042247,1e-06,59315.0,59314.0,1.82911481]
[1725326043358,0.3608,59323.0,59322.0,0.067425]
[1725326043558,0.3608,59323.0,59322.0,0.067825]
[1725326043752,0.3608,59323.0,59322.0,0.573545]
[1725326043954,0.3608,59323.0,59322.0,1.24097]
[1725326044559,0.3608,59323.0,59322.0,0.64097]
[1725326045459,0.00025281,59325.0,59324.0,0.067422]
[1725326045759,0.00025281,59325.0,59324.0,0.067822]
[1725326048973,0.36105281,59325.0,59324.0,0.067822]
[1725326050559,0.00025281,59325.0,59324.0,0.428622]
[1725326050766,0.00025281,59325.0,59324.0,0.115322]
[1725326051365,0.36105281,59325.0,59324.0,0.115322]
[1725326051554,0.00025281,59325.0,59324.0,0.1987165]
[1725326051950,0.00025281,59325.0,59324.0,0.115322]
[1725326052155,0.00025281,59325.0,59324.0,1.209224]
[1725326052359,0.00025281,59325.0,59324.0,1.93764809]
[1725326052862,0.00025281,59325.0,59324.0,1.98294809]
[1725326053967,0.31889409,59330.0,59329.0,0.067417]
[1725326054356,0.31889409,59330.0,59329.0,0.067817]
[1725326054557,0.31889409,59330.0,59329.0,0.13472811]
[1725326054761,0.31889409,59330.0,59329.0,0.067817]
[1725326054960,0.38631009,59330.0,59329.0,0.067817]
[1725326055463,0.38631009,59330.0,59329.0,0.0004]
[1725326057260,0.89195009,59330.0,59329.0,0.0004]
[1725326058171,0.38631009,59330.0,59329.0,0.0004]
[1725326059473,1.55936609,59330.0,59329.0,0.0004]
[1725326059769,0.95936609,59330.0,59329.0,0.0004]
[1725326060470,1.00666609,59330.0,59329.0,0.0004]
[1725326060974,1.60666609,59330.0,59329.0,0.0004]
[1725326062265,0.067427,59320.0,59317.0,0.06743]
[1725326062465,0.067427,59320.0,59314.0,0.32395281]
[1725326062466,0.0977,59319.0,59315.0,0.00559229]
[1725326062675,0.0977,59319.0,59314.0,0.32395281]
[1725326063868,0.0977,59319.0,59318.0,0.067429]
[1725326064578,0.4585,59319.0,59318.0,0.067429]
[1725326065471,0.0977,59319.0,59318.0,0.067429]
[1725326068171,0.165128,59319.0,59318.0,0.067429]
[1725326068980,0.525928,59319.0,59318.0,0.067429]
[1725326069679,0.476628,59319.0,59318.0,0.067429]
[1725326070075,0.115828,59319.0,59318.0,0.067429]
[1725326070377,0.476628,59319.0,59318.0,0.067429]
[1725326073883,0.4092,59319.0,59318.0,0.067429]
[1725326074784,0.067425,59322.0,59321.0,0.067426]
[1725326074978,0.067425,59322.0,59321.0,0.067826]
[1725326079489,0.3608,59325.0,59324.0,0.067422]
[1725326079692,0.3608,59325.0,59324.0,0.067822]
[1725326079994,0.428221,59325.0,59324.0,0.067822]
[1725326081609,0.067421,59325.0,59324.0,0.067822]
[1725326081788,0.428221,59325.0,59324.0,0.067822]
[1725326082888,0.3608,59325.0,59324.0,0.067822]
[1725326083296,0.3608,59325.0,59324.0,0.13477242]
[1725326083487,0.3608,59325.0,59324.0,0.067822]
[1725326088090,0.4508,59325.0,59324.0,0.067822]
[1725326092599,0.518221,59325.0,59324.0,0.067822]
[1725326094187,1.63235565,59325.0,59314.0,0.00025281]
[1725326094401,0.4508,59315.0,59314.0,0.00025281]
[1725326094604,0.518233,59315.0,59314.0,0.00025281]
[1725326095187,0.57869812,59315.0,59314.0,0.00025281]
[1725326095391,0.98719812,59315.0,59314.0,0.00025281]
[1725326095603,0.93252067,59315.0,59314.0,0.00025281]
[1725326095793,0.99995367,59315.0,59314.0,0.00025281]
[1725326095994,1.06995367,59315.0,59314.0,0.00025281]
[1725326096193,1.00252067,59315.0,59314.0,0.00025281]
[1725326099397,1.06995367,59315.0,59314.0,0.00025281]
[1725326099704,0.70915367,59315.0,59314.0,0.00025281]
[1725326100001,1.93491367,59315.0,59314.0,0.00025281]
[1725326101309,1.81491367,59315.0,59314.0,0.00025281]
[1725326101503,1.21491367,59315.0,59314.0,0.00025281]